[Event "46th Barbera del Valles Open-A 2024"]
[Site "Barbera del Valles"]
[Date "2024.07.09"]
[Round "5.9"]
[White "Kao, Jamison Edrich"]
[Black "Vaibhav Jayant Raut"]
[Result "1/2-1/2"]
[ECO "B22"]
[WhiteElo "2124"]
[BlackElo "2071"]
[Annotator "RC"]
[PlyCount "118"]
[EventDate "2024.06.25"]
[EventType "swiss"]
[EventCountry "ESP"]
[SourceTitle "playchess.com"]
[Source "ChessBase"]
[SourceQuality "1"]
[TimeControl "5400+30"]

1. e4 {[%emt 0:00:02]} c5 {[%emt 0:01:17]} 2. Nf3 {[%emt 0:00:04]} e6 {[%emt 0:03:29]} 3. c3 {[%emt 0:00:04]} Nf6 {[%emt 0:00:05]} 4. e5 {[%emt 0:00:01]} Nd5 {[%emt 0:00:09]} 5. d4 {[%emt 0:00:02]} cxd4 {[%emt 0:00:07]} 6. cxd4 {[%emt 0:00:02]} d6 {[%emt 0:02:01]} 7. Bc4 {[%emt 0:00:03]} Nc6 {[%emt 0:04:42]} 8. O-O {[%emt 0:01:22]} Be7 {[%emt 0:01:18]} 9. Qe2 {[%emt 0:00:07]} O-O {[%emt 0:02:25]} 10. Rd1 {[%emt 0:00:02]} Na5 {[%emt 0:10:12]} 11. Bxd5 {[%emt 0:10:34]} exd5 {[%emt 0:01:07]} 12. Nc3 {[%emt 0:00:03]} Be6 {[%emt 0:02:14]} 13. Bf4 {[%emt 0:01:27]} Rc8 {[%emt 0:09:25]} 14. Nb5 {[%emt 0:06:58]} dxe5 {[%emt 0:00:38]} 15. dxe5 {[%emt 0:00:07]} a6 {[%emt 0:10:01]} 16. Nbd4 {[%emt 0:00:22]} Qd7 {[%emt 0:02:45]} 17. Rd3 {[%emt 0:03:59]} Nc6 {[%emt 0:15:19]} 18. h3 {[%emt 0:04:02]} Rfe8 {[%emt 0:01:57]} 19. Nxc6 {[%emt 0:03:10]} bxc6 {[%emt 0:01:55]} 20. Ng5 {[%emt 0:00:07]} h6 {[%emt 0:07:58]} 21. Nxe6 {[%emt 0:14:14]} Qxe6 {[%emt 0:00:12]} 22. Rg3 {[%emt 0:03:03]} c5 {[%emt 0:04:05]} 23. Qh5 {[%emt 0:02:15]} Rc6 {[%emt 0:00:39]} 24. Re1 {[%emt 0:00:39]} Bf8 {[%emt 0:04:14]} 25. Bd2 {[%emt 0:01:23]} Kh7 {[%emt 0:00:48]} 26. f4 {[%emt 0:01:27]} g6 {[%emt 0:00:19]} 27. Qd1 {[%emt 0:01:13]} c4 {[%emt 0:03:13]} 28. Be3 {[%emt 0:04:39]} c3 {[%emt 0:04:26]} 29. bxc3 {[%emt 0:06:11]} Rxc3 {[%emt 0:00:09]} 30. Rf3 {[%emt 0:03:05]} Rxe3 {[%emt 0:04:31]} 31. Rexe3 {[%emt 0:00:13]} Bc5 {[%emt 0:00:02]} 32. Kh2 {[%emt 0:00:53]} Bxe3 {[%emt 0:00:02]} 33. Rxe3 {[%emt 0:00:05]} Qf5 {[%emt 0:00:49]} 34. Rf3 {[%emt 0:03:02]} Qe6 {[%emt 0:03:14]} 35. Rd3 {[%emt 0:04:15]} Qf5 {[%emt 0:00:48]} 36. Qf3 {[%emt 0:01:44]} g5 {[%emt 0:00:40]} 37. g4 {[%emt 0:08:03]} Qxf4+ {[%emt 0:00:04]} 38. Qxf4 {[%emt 0:00:03]} gxf4 {[%emt 0:00:02]} 39. Rxd5 {[%emt 0:00:06]} Rc8 {[%emt 0:00:30]} 40. Ra5 {[%emt 0:00:42]} Rc2+ {[%emt 0:00:55]} 41. Kg1 {[%emt 0:00:20]} h5 {[%emt 0:01:38]} 42. Rxa6 {[%emt 0:16:22]} hxg4 {[%emt 0:00:07]} 43. hxg4 {[%emt 0:00:02]} Kg7 {[%emt 0:00:42]} 44. Kf1 {[%emt 0:01:03]} f3 {[%emt 0:00:31]} 45. a3 {[%emt 0:00:21]} Re2 {[%emt 0:00:44]} 46. Rf6 {[%emt 0:02:33]} Re3 {[%emt 0:00:10]} 47. Kf2 {[%emt 0:00:20]} Rxa3 {[%emt 0:00:23]} 48. Rxf3 {[%emt 0:03:36]} Ra4 {[%emt 0:00:15]} 49. Kg3 {[%emt 0:00:00]} Re4 {[%emt 0:00:57]} 50. Rf5 {[%emt 0:00:00]} Re1 {[%emt 0:00:42]} 51. Kf2 {[%emt 0:00:00]} Re4 {[%emt 0:00:09]} 52. Kf3 {[%emt 0:00:00]} Re1 {[%emt 0:00:06]} 53. Kf4 {[%emt 0:00:00]} Kh6 {[%emt 0:00:14]} 54. Rf6+ {[%emt 0:00:00]} Kg7 {[%emt 0:00:04]} 55. Rd6 {[%emt 0:00:00]} Rf1+ {[%emt 0:00:20]} 56. Kg5 {[%emt 0:00:00]} Re1 {[%emt 0:00:04]} 57. Kf5 {[%emt 0:00:00]} Rf1+ {[%emt 0:00:05]} 58. Kg5 {[%emt 0:00:00]} Re1 {[%emt 0:00:04]} 59. Rd5 {[%emt 0:00:00]} Rxe5+ {[%emt 0:03:59]} 1/2-1/2

[Event "46th Barbera del Valles Open-A 2024"]
[Site "Barbera del Valles"]
[Date "2024.07.09"]
[Round "5.10"]
[White "Berdayes Ason, Dylan Isidro"]
[Black "Navalgund, Niranjan"]
[Result "1/2-1/2"]
[ECO "D23"]
[WhiteElo "2519"]
[BlackElo "2149"]
[Annotator "RC"]
[PlyCount "138"]
[EventDate "2024.06.25"]
[EventType "swiss"]
[EventCountry "ESP"]
[SourceTitle "playchess.com"]
[Source "ChessBase"]
[SourceQuality "1"]
[TimeControl "5400+30"]

1. d4 {[%emt 0:00:09]} d5 {[%emt 0:00:48]} 2. c4 {[%emt 0:00:12]} c6 {[%emt 0:00:02]} 3. Nf3 {[%emt 0:00:28]} Nf6 {[%emt 0:00:03]} 4. Qb3 {[%emt 0:00:07]} dxc4 {[%emt 0:00:26]} 5. Qxc4 {[%emt 0:00:03]} Bf5 {[%emt 0:00:05]} 6. g3 {[%emt 0:00:35]} e6 {[%emt 0:00:07]} 7. Bg2 {[%emt 0:00:02]} Be7 {[%emt 0:00:06]} 8. O-O {[%emt 0:00:07]} O-O {[%emt 0:02:25]} 9. e3 {[%emt 0:00:10]} Nbd7 {[%emt 0:00:31]} 10. Rd1 {[%emt 0:00:04]} Rc8 {[%emt 0:00:15]} 11. Qe2 {[%emt 0:00:27]} Bg6 {[%emt 0:14:07]} 12. Nc3 {[%emt 0:00:08]} b5 {[%emt 0:00:44]} 13. b3 {[%emt 0:00:03]} Qa5 {[%emt 0:05:11]} 14. Bb2 {[%emt 0:00:03]} Nd5 {[%emt 0:05:22]} 15. Rdc1 {[%emt 0:08:20]} b4 {[%emt 0:04:29]} 16. Na4 {[%emt 0:02:16]} c5 {[%emt 0:01:57]} 17. e4 {[%emt 0:10:33]} N5b6 {[%emt 0:01:24]} 18. Nxc5 {[%emt 0:01:23]} Nxc5 {[%emt 0:00:26]} 19. dxc5 {[%emt 0:00:02]} Rxc5 {[%emt 0:00:53]} 20. Rxc5 {[%emt 0:00:54]} Qxc5 {[%emt 0:03:51]} 21. Rc1 {[%emt 0:10:45]} Qa5 {[%emt 0:02:47]} 22. Ba1 {[%emt 0:01:01]} Rc8 {[%emt 0:08:16]} 23. Rxc8+ {[%emt 0:08:34]} Nxc8 {[%emt 0:00:02]} 24. Ne5 {[%emt 0:02:32]} Qc5 {[%emt 0:04:52]} 25. Bb2 {[%emt 0:03:23]} Bd6 {[%emt 0:04:48]} 26. Qd2 {[%emt 0:06:06]} Nb6 {[%emt 0:05:10]} 27. h4 {[%emt 0:02:16]} f6 {[%emt 0:02:36]} 28. Nd3 {[%emt 0:01:08]} Qb5 {[%emt 0:03:06]} 29. Bd4 {[%emt 0:04:10]} e5 {[%emt 0:01:28]} 30. Be3 {[%emt 0:00:17]} Bf8 {[%emt 0:00:18]} 31. Qc2 {[%emt 0:01:46]} Bd6 {[%emt 0:06:34]} 32. Nb2 {[%emt 0:00:30]} Be8 {[%emt 0:03:46]} 33. Bf1 {[%emt 0:11:38]} Qc6 {[%emt 0:00:21]} 34. Qd2 {[%emt 0:00:20]} Be7 {[%emt 0:02:06]} 35. Bxb6 {[%emt 0:04:34]} axb6 {[%emt 0:02:03]} 36. Bc4+ {[%emt 0:00:38]} Kf8 {[%emt 0:00:49]} 37. Qe2 {[%emt 0:01:47]} b5 {[%emt 0:08:08]} 38. Bd5 {[%emt 0:00:10]} Qc3 {[%emt 0:00:11]} 39. Nd3 {[%emt 0:01:50]} Qc8 {[%emt 0:04:04]} 40. Kg2 {[%emt 0:00:15]} Bd6 {[%emt 0:01:40]} 41. Ne1 {[%emt 0:01:45]} Be7 {[%emt 0:00:24]} 42. Nc2 {[%emt 0:00:38]} Bc5 {[%emt 0:01:06]} 43. Qd2 {[%emt 0:00:16]} Qd8 {[%emt 0:00:30]} 44. Qe2 {[%emt 0:02:32]} Qd7 {[%emt 0:00:05]} 45. Ne1 {[%emt 0:00:29]} Bd6 {[%emt 0:00:48]} 46. Nd3 {[%emt 0:00:05]} Qc8 {[%emt 0:00:38]} 47. Qe3 {[%emt 0:00:06]} Qc7 {[%emt 0:01:07]} 48. Kh2 {[%emt 0:00:02]} Ke7 {[%emt 0:00:41]} 49. Bg8 {[%emt 0:02:55]} Kf8 {[%emt 0:00:47]} 50. Bd5 {[%emt 0:00:17]} Ke7 {[%emt 0:00:01]} 51. Kg1 {[%emt 0:00:19]} Kf8 {[%emt 0:00:08]} 52. Qe2 {[%emt 0:00:28]} Qc8 {[%emt 0:00:15]} 53. Kg2 {[%emt 0:00:19]} Ke7 {[%emt 0:01:09]} 54. Ne1 {[%emt 0:00:02]} Kf8 {[%emt 0:00:25]} 55. Nc2 {[%emt 0:00:02]} Bc5 {[%emt 0:00:27]} 56. Qe1 {[%emt 0:00:06]} Bh5 {[%emt 0:01:18]} 57. Nxb4 {[%emt 0:01:01]} Qg4 {[%emt 0:01:32]} 58. Qc3 {[%emt 0:02:51]} Bxf2 {[%emt 0:00:01]} 59. Nc2 {[%emt 0:03:18]} Qe2 {[%emt 0:01:04]} 60. Qc8+ {[%emt 0:03:54]} Be8 {[%emt 0:00:01]} 61. Qf5 {[%emt 0:00:49]} Be1+ {[%emt 0:00:56]} 62. Kh3 {[%emt 0:00:48]} Qxc2 {[%emt 0:00:24]} 63. Qe6 {[%emt 0:00:11]} Qc7 {[%emt 0:01:05]} 64. Qg8+ {[%emt 0:00:08]} Ke7 {[%emt 0:01:21]} 65. Qxg7+ {[%emt 0:00:07]} Kd8 {[%emt 0:00:00]} 66. Qxf6+ {[%emt 0:00:06]} Kc8 {[%emt 0:00:00]} 67. Qa6+ {[%emt 0:00:21]} Kd8 {[%emt 0:00:00]} 68. Qf6+ {[%emt 0:00:02]} Qe7 {[%emt 0:00:55]} 69. Qb6+ {[%emt 0:00:02]} Qc7 {[%emt 0:00:15]} 1/2-1/2